[Event "22nd ETCC Women 2019"]
[Site "Batumi"]
[Date "2019.10.27"]
[Round "4.25"]
[White "Georgescu, Lena"]
[Black "Machlik, Edit"]
[Result "1-0"]
[ECO "B12"]
[WhiteElo "2271"]
[BlackElo "2062"]
[Annotator "NA"]
[PlyCount "79"]
[EventDate "2019.10.24"]
[EventType "team-tourn"]
[EventCountry "GEO"]
[SourceTitle "playchess.com"]
[Source "ChessBase"]
[SourceQuality "1"]
[WhiteTeam "Switzerland"]
[BlackTeam "Norway"]
[WhiteTeamCountry "SUI"]
[BlackTeamCountry "NOR"]
[TimeControl "40/5400+30:1800+30"]

1. e4 {[%emt 0:00:00]} c6 {[%emt 0:00:00]} 2. d4 {[%emt 0:00:00]} d5 {[%emt 0:00:00]} 3. e5 {[%emt 0:00:00]} Bf5 {[%emt 0:00:00]} 4. h4 {[%emt 0:00:00]} h5 {[%emt 0:02:58]} 5. Bd3 {[%emt 0:00:00]} Bxd3 {[%emt 0:02:43]} 6. Qxd3 {[%emt 0:00:00]} e6 {[%emt 0:00:47]} 7. Bg5 {[%emt 0:00:00]} Qb6 {[%emt 0:03:14]} 8. Nd2 {[%emt 0:00:11]} Qa6 {[%emt 0:19:08]} 9. c4 {[%emt 0:01:12]} Bb4 {[%emt 0:02:38]} 10. b3 {[%emt 0:01:14]} Nd7 {[%emt 0:25:36]} 11. Ngf3 {[%emt 0:05:05]} Ne7 {[%emt 0:17:51]} 12. O-O {[%emt 0:07:58]} Nf5 {[%emt 0:01:03]} 13. Rfd1 {[%emt 0:09:41]} f6 {[%emt 0:07:41]} 14. Bf4 {[%emt 0:16:26]} Kf7 {[%emt 0:00:21]} 15. Nf1 {[%emt 0:04:33]} Nb6 {[%emt 0:02:24]} 16. Rac1 {[%emt 0:10:59]} Rac8 {[%emt 0:03:49]} 17. Ne3 {[%emt 0:02:42]} Nxe3 {[%emt 0:00:50]} 18. fxe3 {[%emt 0:01:27]} f5 {[%emt 0:02:03]} 19. Qb1 {[%emt 0:06:01]} Ba3 {[%emt 0:01:09]} 20. Rc2 {[%emt 0:00:08]} Nd7 {[%emt 0:03:14]} 21. Rf1 {[%emt 0:02:51]} g6 {[%emt 0:01:15]} 22. Qe1 {[%emt 0:01:49]} b5 {[%emt 0:00:25]} 23. c5 {[%emt 0:03:42]} Qb7 {[%emt 0:00:19]} 24. Qg3 {[%emt 0:01:17]} Rhg8 {[%emt 0:00:21]} 25. Bg5 {[%emt 0:02:02]} Qc7 {[%emt 0:00:44]} 26. Ne1 {[%emt 0:00:47]} Qb8 {[%emt 0:00:57]} 27. Nd3 {[%emt 0:00:21]} a5 {[%emt 0:01:13]} 28. Nf4 {[%emt 0:01:07]} Bb4 {[%emt 0:00:22]} 29. Bf6 {[%emt 0:04:22]} Qc7 {[%emt 0:00:48]} 30. Qg5 {[%emt 0:00:39]} Rce8 {[%emt 0:00:29]} 31. Rf3 {[%emt 0:05:52]} a4 {[%emt 0:00:14]} 32. Re2 {[%emt 0:05:42]} axb3 {[%emt 0:00:06]} 33. axb3 {[%emt 0:00:01]} Qa7 {[%emt 0:00:27]} 34. Rg3 {[%emt 0:00:23]} Qa1+ {[%emt 0:00:35]} 35. Kf2 {[%emt 0:03:26]} Bxc5 {[%emt 0:00:45]} 36. Qh6 {[%emt 0:01:34]} Nxf6 {[%emt 0:01:00]} 37. exf6 {[%emt 0:00:12]} Bd6 {[%emt 0:00:27]} 38. Qh7+ {[%emt 0:00:28]} Kxf6 {[%emt 0:00:17]} 39. Rxg6+ {[%emt 0:00:18]} Rxg6 {[%emt 0:00:12]} 40. Nxh5# {[%emt 0:00:00]} 1-0

[Event "22nd ETCC Women 2019"]
[Site "Batumi"]
[Date "2019.10.27"]
[Round "4.26"]
[White "Zawadzka, Jolanta"]
[Black "Efroimski, Marsel"]
[Result "1-0"]
[ECO "B15"]
[WhiteElo "2406"]
[BlackElo "2317"]
[Annotator "NA"]
[PlyCount "75"]
[EventDate "2019.10.24"]
[EventType "team-tourn"]
[EventCountry "GEO"]
[SourceTitle "playchess.com"]
[Source "ChessBase"]
[SourceQuality "1"]
[WhiteTeam "Poland"]
[BlackTeam "Israel"]
[WhiteTeamCountry "POL"]
[BlackTeamCountry "ISR"]
[TimeControl "40/5400+30:1800+30"]

1. e4 {[%emt 0:00:00]} c6 {[%emt 0:00:00]} 2. d4 {[%emt 0:00:00]} d5 {[%emt 0:00:00]} 3. Nd2 {[%emt 0:00:03]} dxe4 {[%emt 0:00:00]} 4. Nxe4 {[%emt 0:00:06]} Nf6 {[%emt 0:00:00]} 5. Nxf6+ {[%emt 0:00:24]} exf6 {[%emt 0:00:00]} 6. c3 {[%emt 0:00:27]} Bd6 {[%emt 0:00:05]} 7. Bd3 {[%emt 0:00:37]} O-O {[%emt 0:00:05]} 8. Ne2 {[%emt 0:00:16]} Re8 {[%emt 0:00:23]} 9. O-O {[%emt 0:00:29]} Na6 {[%emt 0:06:36]} 10. Bf4 {[%emt 0:06:21]} Nc7 {[%emt 0:02:43]} 11. Bg3 {[%emt 0:05:02]} Ne6 {[%emt 0:03:22]} 12. Qc2 {[%emt 0:03:50]} g6 {[%emt 0:02:09]} 13. Rad1 {[%emt 0:00:49]} Ng7 {[%emt 0:01:27]} 14. c4 {[%emt 0:13:00]} Bf5 {[%emt 0:02:04]} 15. Nc3 {[%emt 0:04:55]} Bxg3 {[%emt 0:03:33]} 16. hxg3 {[%emt 0:00:23]} Qc7 {[%emt 0:16:26]} 17. d5 {[%emt 0:09:07]} Re5 {[%emt 0:07:01]} 18. b4 {[%emt 0:08:26]} Rd8 {[%emt 0:09:18]} 19. Qb3 {[%emt 0:04:07]} Bxd3 {[%emt 0:04:45]} 20. Rxd3 {[%emt 0:00:08]} Qe7 {[%emt 0:00:11]} 21. a3 {[%emt 0:05:08]} Ne8 {[%emt 0:08:05]} 22. Qd1 {[%emt 0:02:24]} c5 {[%emt 0:04:50]} 23. Qa4 {[%emt 0:09:53]} b6 {[%emt 0:03:30]} 24. Nb5 {[%emt 0:02:06]} Nd6 {[%emt 0:05:19]} 25. Nxd6 {[%emt 0:09:07]} Rxd6 {[%emt 0:03:21]} 26. bxc5 {[%emt 0:00:05]} bxc5 {[%emt 0:00:07]} 27. Qa5 {[%emt 0:00:09]} Rd7 {[%emt 0:02:03]} 28. Rb3 {[%emt 0:01:42]} Qf8 {[%emt 0:06:44]} 29. Rfb1 {[%emt 0:03:01]} Qh6 {[%emt 0:01:53]} 30. g4 {[%emt 0:05:15]} Rde7 {[%emt 0:04:40]} 31. d6 {[%emt 0:00:29]} Rd7 {[%emt 0:00:54]} 32. Qc7 {[%emt 0:02:01]} Rxc7 {[%emt 0:03:54]} 33. dxc7 {[%emt 0:00:02]} Qd2 {[%emt 0:00:27]} 34. c8=Q+ {[%emt 0:00:14]} Kg7 {[%emt 0:00:04]} 35. Rb8 {[%emt 0:01:29]} Re1+ {[%emt 0:00:11]} 36. Rxe1 {[%emt 0:00:20]} Qxe1+ {[%emt 0:00:02]} 37. Kh2 {[%emt 0:00:05]} Qe5+ {[%emt 0:00:03]} 38. g3 {[%emt 0:00:23]} 1-0

[Event "22nd ETCC Women 2019"]
[Site "Batumi"]
[Date "2019.10.27"]
[Round "4.26"]
[White "Johnsen, Sylvia"]
[Black "De Seroux, Camille"]
[Result "1/2-1/2"]
[ECO "B50"]
[WhiteElo "1898"]
[BlackElo "2140"]
[Annotator "NA"]
[PlyCount "151"]
[EventDate "2019.10.24"]
[EventType "team-tourn"]
[EventCountry "GEO"]
[SourceTitle "playchess.com"]
[Source "ChessBase"]
[SourceQuality "1"]
[WhiteTeam "Norway"]
[BlackTeam "Switzerland"]
[WhiteTeamCountry "NOR"]
[BlackTeamCountry "SUI"]
[TimeControl "40/5400+30:1800+30"]

1. e4 {[%emt 0:00:00]} c5 {[%emt 0:00:00]} 2. Nf3 {[%emt 0:00:00]} d6 {[%emt 0:00:00]} 3. Bc4 {[%emt 0:00:00]} Nc6 {[%emt 0:02:33]} 4. c3 {[%emt 0:00:40]} Nf6 {[%emt 0:02:45]} 5. d3 {[%emt 0:00:39]} e6 {[%emt 0:01:03]} 6. Qe2 {[%emt 0:01:41]} Be7 {[%emt 0:01:20]} 7. Bb3 {[%emt 0:00:18]} O-O {[%emt 0:01:16]} 8. O-O {[%emt 0:00:07]} b6 {[%emt 0:04:10]} 9. Bc2 {[%emt 0:12:09]} Ba6 {[%emt 0:06:52]} 10. a4 {[%emt 0:04:26]} Rc8 {[%emt 0:10:25]} 11. Na3 {[%emt 0:02:40]} Re8 {[%emt 0:03:38]} 12. Nb5 {[%emt 0:03:08]} Qd7 {[%emt 0:03:06]} 13. d4 {[%emt 0:08:16]} cxd4 {[%emt 0:03:23]} 14. Nfxd4 {[%emt 0:02:24]} Bb7 {[%emt 0:10:38]} 15. Nxc6 {[%emt 0:04:46]} Bxc6 {[%emt 0:00:29]} 16. Nd4 {[%emt 0:02:15]} Ba8 {[%emt 0:03:12]} 17. a5 {[%emt 0:02:40]} Qb7 {[%emt 0:02:35]} 18. a6 {[%emt 0:02:07]} Qb8 {[%emt 0:00:32]} 19. f3 {[%emt 0:11:14]} Rc5 {[%emt 0:04:18]} 20. Nb5 {[%emt 0:07:02]} Bf8 {[%emt 0:07:51]} 21. Be3 {[%emt 0:00:42]} Rcc8 {[%emt 0:02:26]} 22. Bg5 {[%emt 0:02:14]} Nd7 {[%emt 0:02:15]} 23. f4 {[%emt 0:04:15]} d5 {[%emt 0:09:31]} 24. e5 {[%emt 0:02:02]} Nc5 {[%emt 0:01:07]} 25. Rfd1 {[%emt 0:09:03]} Ne4 {[%emt 0:03:08]} 26. Bxe4 {[%emt 0:01:59]} dxe4 {[%emt 0:00:03]} 27. Nd6 {[%emt 0:01:27]} b5 {[%emt 0:07:56]} 28. Nxb5 {[%emt 0:04:23]} Bd5 {[%emt 0:01:35]} 29. Nd4 {[%emt 0:03:40]} Qb6 {[%emt 0:00:24]} 30. Rd2 {[%emt 0:01:38]} Bc4 {[%emt 0:01:27]} 31. Qxe4 {[%emt 0:00:31]} Bxa6 {[%emt 0:00:12]} 32. f5 {[%emt 0:03:50]} exf5 {[%emt 0:02:31]} 33. Qxf5 {[%emt 0:00:17]} Rc5 {[%emt 0:00:40]} 34. Bf4 {[%emt 0:01:38]} f6 {[%emt 0:01:29]} 35. Qd7 {[%emt 0:01:01]} Re7 {[%emt 0:00:53]} 36. Qd6 {[%emt 0:00:25]} fxe5 {[%emt 0:00:59]} 37. Rxa6 {[%emt 0:00:07]} Qxd6 {[%emt 0:00:26]} 38. Rxd6 {[%emt 0:00:09]} exf4 {[%emt 0:00:19]} 39. Ra6 {[%emt 0:00:15]} Rd5 {[%emt 0:01:20]} 40. Kf2 {[%emt 0:00:00]} g6 {[%emt 0:00:00]} 41. Re2 {[%emt 0:02:51]} Rxe2+ {[%emt 0:07:08]} 42. Kxe2 {[%emt 0:00:06]} Bc5 {[%emt 0:04:21]} 43. Kd3 {[%emt 0:03:15]} Bb6 {[%emt 0:04:14]} 44. b4 {[%emt 0:01:52]} Rh5 {[%emt 0:03:07]} 45. h3 {[%emt 0:01:57]} Rg5 {[%emt 0:00:28]} 46. Ra2 {[%emt 0:00:11]} Rg3+ {[%emt 0:00:52]} 47. Nf3 {[%emt 0:01:08]} g5 {[%emt 0:03:34]} 48. c4 {[%emt 0:00:07]} h5 {[%emt 0:01:02]} 49. Ke4 {[%emt 0:06:48]} g4 {[%emt 0:03:45]} 50. hxg4 {[%emt 0:00:44]} hxg4 {[%emt 0:00:16]} 51. c5 {[%emt 0:00:11]} gxf3 {[%emt 0:02:36]} 52. gxf3 {[%emt 0:00:23]} Rh3 {[%emt 0:02:58]} 53. cxb6 {[%emt 0:04:30]} axb6 {[%emt 0:00:08]} 54. Rg2+ {[%emt 0:00:17]} Kf7 {[%emt 0:01:36]} 55. Kxf4 {[%emt 0:00:13]} Rh5 {[%emt 0:01:06]} 56. Rg5 {[%emt 0:02:26]} Rh4+ {[%emt 0:00:10]} 57. Rg4 {[%emt 0:00:23]} Rh5 {[%emt 0:00:11]} 58. Ke4 {[%emt 0:00:49]} Rb5 {[%emt 0:00:49]} 59. Rf4+ {[%emt 0:01:31]} Ke6 {[%emt 0:00:27]} 60. Kd3 {[%emt 0:00:25]} Rh5 {[%emt 0:00:56]} 61. Rd4 {[%emt 0:03:02]} Rh3 {[%emt 0:00:47]} 62. Ke4 {[%emt 0:00:38]} Rh1 {[%emt 0:00:26]} 63. Rc4 {[%emt 0:00:57]} Re1+ {[%emt 0:00:26]} 64. Kf4 {[%emt 0:01:35]} Kd5 {[%emt 0:00:06]} 65. Re4 {[%emt 0:00:45]} Rf1 {[%emt 0:00:52]} 66. Kg4 {[%emt 0:00:25]} b5 {[%emt 0:00:39]} 67. Rf4 {[%emt 0:01:20]} Rc1 {[%emt 0:00:43]} 68. Kf5 {[%emt 0:00:49]} Rc4 {[%emt 0:00:41]} 69. Re4 {[%emt 0:00:08]} Rc3 {[%emt 0:00:32]} 70. f4 {[%emt 0:02:19]} Rh3 {[%emt 0:00:32]} 71. Re8 {[%emt 0:01:24]} Kc4 {[%emt 0:00:22]} 72. Re4+ {[%emt 0:00:29]} Kd5 {[%emt 0:00:02]} 73. Re1 {[%emt 0:01:19]} Rb3 {[%emt 0:00:12]} 74. Rd1+ {[%emt 0:00:10]} Kc4 {[%emt 0:00:19]} 75. Ke6 {[%emt 0:01:00]} Kxb4 {[%emt 0:00:33]} 76. f5 {[%emt 0:00:27]} 1/2-1/2

[Event "22nd ETCC Women 2019"]
[Site "Batumi"]
[Date "2019.10.27"]
[Round "4.27"]
[White "Klinova, Masha"]
[Black "Cyfka, Karina"]
[Result "0-1"]
[ECO "C55"]
[WhiteElo "2277"]
[BlackElo "2412"]
[Annotator "NA RC"]
[PlyCount "79"]
[EventDate "2019.10.24"]
[EventType "team-tourn"]
[EventCountry "GEO"]
[SourceTitle "playchess.com"]
[Source "ChessBase"]
[SourceQuality "1"]
[WhiteTeam "Israel"]
[BlackTeam "Poland"]
[WhiteTeamCountry "ISR"]
[BlackTeamCountry "POL"]
[TimeControl "40/5400+30:1800+30"]

1. e4 {[%emt 0:00:00]} e5 {[%emt 0:00:00]} 2. Nf3 {[%emt 0:00:00]} Nc6 {[%emt 0:00:00]} 3. Bc4 {[%emt 0:00:00]} Nf6 {[%emt 0:00:09]} 4. d3 {[%emt 0:00:00]} h6 {[%emt 0:00:17]} 5. O-O {[%emt 0:02:12]} d6 {[%emt 0:00:17]} 6. a4 {[%emt 0:01:33]} g5 {[%emt 0:01:11]} 7. Be3 {[%emt 0:03:17]} Bg7 {[%emt 0:04:40]} 8. Nc3 {[%emt 0:06:30]} O-O {[%emt 0:12:45]} 9. Nd2 {[%emt 0:08:09]} Ne7 {[%emt 0:03:07]} 10. f3 {[%emt 0:15:53]} c6 {[%emt 0:09:41]} 11. d4 {[%emt 0:07:57]} Ng4 12. fxg4 {[%emt 0:03:01]} exd4 {[%emt 0:09:26]} 13. Qf3 {[%emt 0:03:53]} Be6 {[%emt 0:11:57]} 14. Bxd4 {[%emt 0:08:26]} Bxd4+ {[%emt 0:00:07]} 15. Kh1 {[%emt 0:00:01]} Ng6 {[%emt 0:03:21]} 16. Qd3 {[%emt 0:07:04]} Be5 {[%emt 0:08:50]} 17. Bxe6 {[%emt 0:04:23]} fxe6 {[%emt 0:00:04]} 18. Nc4 {[%emt 0:00:25]} Qe7 {[%emt 0:03:51]} 19. Nxe5 {[%emt 0:06:28]} Nxe5 {[%emt 0:00:17]} 20. Qe2 {[%emt 0:00:05]} Rxf1+ {[%emt 0:03:26]} 21. Rxf1 {[%emt 0:00:05]} Rf8 {[%emt 0:00:07]} 22. h3 {[%emt 0:00:12]} Rxf1+ {[%emt 0:02:50]} 23. Qxf1 {[%emt 0:00:05]} Kg7 {[%emt 0:04:32]} 24. Qf2 {[%emt 0:01:31]} b6 {[%emt 0:01:34]} 25. Qd2 {[%emt 0:02:57]} Nf7 {[%emt 0:02:46]} 26. Ne2 {[%emt 0:00:25]} Qf6 {[%emt 0:01:49]} 27. c3 {[%emt 0:03:18]} c5 {[%emt 0:01:54]} 28. Qd3 {[%emt 0:01:26]} Qe7 {[%emt 0:03:23]} 29. Ng1 {[%emt 0:04:34]} Ne5 {[%emt 0:01:30]} 30. Qe2 {[%emt 0:00:10]} Qd7 {[%emt 0:02:43]} 31. Qa6 {[%emt 0:03:07]} Qf7 {[%emt 0:02:39]} 32. Qe2 {[%emt 0:00:06]} Qf4 {[%emt 0:02:57]} 33. Nf3 {[%emt 0:00:26]} Nxf3 {[%emt 0:02:05]} 34. gxf3 {[%emt 0:00:41]} Qg3 {[%emt 0:00:20]} 35. Qd3 {[%emt 0:06:02]} Kf6 {[%emt 0:01:02]} 36. b4 {[%emt 0:00:46]} Ke5 {[%emt 0:01:13]} 37. bxc5 {[%emt 0:00:41]} bxc5 {[%emt 0:00:09]} 38. c4 {[%emt 0:00:08]} Qf2 {[%emt 0:00:31]} 39. Qc3+ {[%emt 0:00:22]} Kf4 {[%emt 0:00:31]} 40. Qc1+ {[%emt 0:00:00]} 0-1

[Event "22nd ETCC Women 2019"]
[Site "Batumi"]
[Date "2019.10.27"]
[Round "4.27"]
[White "Pellicoro, Nathalie"]
[Black "Kyrkjebo, Hanna B."]
[Result "0-1"]
[ECO "C50"]
[WhiteElo "1967"]
[BlackElo "1949"]
[Annotator "NA"]
[PlyCount "66"]
[EventDate "2019.10.24"]
[EventType "team-tourn"]
[EventCountry "GEO"]
[SourceTitle "playchess.com"]
[Source "ChessBase"]
[SourceQuality "1"]
[WhiteTeam "Switzerland"]
[BlackTeam "Norway"]
[WhiteTeamCountry "SUI"]
[BlackTeamCountry "NOR"]
[TimeControl "40/5400+30:1800+30"]

1. e4 {[%emt 0:00:00]} e5 {[%emt 0:00:00]} 2. Nf3 {[%emt 0:00:00]} Nc6 {[%emt 0:00:00]} 3. Bc4 {[%emt 0:00:08]} Bc5 {[%emt 0:00:00]} 4. d3 {[%emt 0:00:11]} Nf6 {[%emt 0:00:30]} 5. Bg5 {[%emt 0:00:14]} d6 {[%emt 0:00:51]} 6. c3 {[%emt 0:00:30]} h6 {[%emt 0:00:07]} 7. Bh4 {[%emt 0:00:08]} g5 {[%emt 0:01:07]} 8. Bg3 {[%emt 0:02:22]} a6 {[%emt 0:00:32]} 9. b4 {[%emt 0:01:40]} Ba7 {[%emt 0:00:22]} 10. a4 {[%emt 0:00:15]} Ne7 {[%emt 0:04:27]} 11. Nbd2 {[%emt 0:09:12]} Ng6 {[%emt 0:01:26]} 12. b5 {[%emt 0:28:30]} O-O {[%emt 0:13:07]} 13. O-O {[%emt 0:06:49]} a5 {[%emt 0:07:27]} 14. Re1 {[%emt 0:03:36]} Qe7 {[%emt 0:13:51]} 15. d4 {[%emt 0:12:08]} h5 16. h4 {[%emt 0:04:33]} g4 {[%emt 0:03:20]} 17. dxe5 {[%emt 0:05:24]} dxe5 {[%emt 0:00:45]} 18. Ng5 {[%emt 0:01:43]} Nh7 {[%emt 0:01:54]} 19. Nxh7 {[%emt 0:14:23]} Kxh7 {[%emt 0:00:23]} 20. Bd5 {[%emt 0:03:56]} Nxh4 {[%emt 0:05:25]} 21. Nc4 {[%emt 0:00:34]} Ng6 {[%emt 0:02:10]} 22. Kf1 {[%emt 0:01:34]} h4 23. Bh2 Qf6 {[%emt 0:23:52]} 24. f3 {[%emt 0:02:17]} h3 {[%emt 0:05:29]} 25. Nd2 {[%emt 0:01:49]} hxg2+ {[%emt 0:02:44]} 26. Kxg2 {[%emt 0:00:02]} Nh4+ {[%emt 0:05:18]} 27. Kh1 {[%emt 0:00:01]} gxf3 {[%emt 0:01:20]} 28. Rf1 {[%emt 0:01:29]} Qg5 {[%emt 0:01:11]} 29. Rg1 Bxg1 {[%emt 0:01:07]} 30. Qxg1 {[%emt 0:00:32]} Qxd2 {[%emt 0:01:23]} 31. Ra2 {[%emt 0:00:01]} Qg2+ {[%emt 0:02:56]} 32. Qxg2 {[%emt 0:01:01]} fxg2+ {[%emt 0:00:13]} 33. Kg1 {[%emt 0:00:21]} Be6 {[%emt 0:01:09]} 0-1

[Event "22nd ETCC Women 2019"]
[Site "Batumi"]
[Date "2019.10.27"]
[Round "4.28"]
[White "Sliwicka, Alicja"]
[Black "Lahav, Michal"]
[Result "1/2-1/2"]
[ECO "C12"]
[WhiteElo "2307"]
[BlackElo "2221"]
[Annotator "NA"]
[PlyCount "41"]
[EventDate "2019.10.24"]
[EventType "team-tourn"]
[EventCountry "GEO"]
[SourceTitle "playchess.com"]
[Source "ChessBase"]
[SourceQuality "1"]
[WhiteTeam "Poland"]
[BlackTeam "Israel"]
[WhiteTeamCountry "POL"]
[BlackTeamCountry "ISR"]
[TimeControl "40/5400+30:1800+30"]

1. e4 {[%emt 0:00:00]} e6 {[%emt 0:00:00]} 2. d4 {[%emt 0:00:00]} d5 {[%emt 0:00:00]} 3. Nc3 {[%emt 0:00:00]} Nf6 {[%emt 0:00:00]} 4. Bg5 {[%emt 0:00:00]} Bb4 {[%emt 0:00:00]} 5. e5 {[%emt 0:00:03]} h6 {[%emt 0:00:00]} 6. Be3 {[%emt 0:00:05]} Ne4 {[%emt 0:00:00]} 7. Qg4 {[%emt 0:00:07]} Kf8 {[%emt 0:00:12]} 8. a3 {[%emt 0:00:08]} Bxc3+ {[%emt 0:03:50]} 9. bxc3 {[%emt 0:00:10]} c5 {[%emt 0:00:05]} 10. Bd3 {[%emt 0:02:21]} Nxc3 {[%emt 0:00:48]} 11. dxc5 {[%emt 0:00:24]} Nc6 {[%emt 0:00:21]} 12. Nf3 {[%emt 0:00:29]} f5 {[%emt 0:00:21]} 13. exf6 {[%emt 0:00:37]} Qxf6 {[%emt 0:00:08]} 14. Qh5 {[%emt 0:00:38]} e5 {[%emt 0:00:15]} 15. Bg6 {[%emt 0:00:36]} Be6 {[%emt 0:00:37]} 16. O-O {[%emt 0:01:10]} Kg8 {[%emt 0:00:10]} 17. Rae1 {[%emt 0:02:25]} Ne7 {[%emt 0:00:40]} 18. Bd3 {[%emt 0:07:55]} Nc6 {[%emt 0:01:03]} 19. Bg6 {[%emt 0:01:54]} Ne7 {[%emt 0:00:13]} 20. Bd3 {[%emt 0:02:05]} Nc6 {[%emt 0:00:05]} 21. Bg6 {[%emt 0:01:36]} 1/2-1/2

[Event "22nd ETCC Women 2019"]
[Site "Batumi"]
[Date "2019.10.27"]
[Round "4.28"]
[White "Kyrkjebo, Marte B."]
[Black "Tamrazyan, Gohar"]
[Result "1-0"]
[ECO "B31"]
[WhiteElo "1871"]
[BlackElo "1955"]
[Annotator "NA"]
[PlyCount "111"]
[EventDate "2019.10.24"]
[EventType "team-tourn"]
[EventCountry "GEO"]
[SourceTitle "playchess.com"]
[Source "ChessBase"]
[SourceQuality "1"]
[WhiteTeam "Norway"]
[BlackTeam "Switzerland"]
[WhiteTeamCountry "NOR"]
[BlackTeamCountry "SUI"]
[TimeControl "40/5400+30:1800+30"]

1. e4 {[%emt 0:00:00]} c5 {[%emt 0:00:00]} 2. Nf3 {[%emt 0:00:00]} Nc6 {[%emt 0:00:00]} 3. Bb5 {[%emt 0:00:00]} g6 {[%emt 0:00:24]} 4. Bxc6 {[%emt 0:00:00]} dxc6 {[%emt 0:00:20]} 5. d3 {[%emt 0:00:28]} Bg7 {[%emt 0:00:22]} 6. h3 {[%emt 0:01:27]} Nf6 {[%emt 0:00:46]} 7. O-O {[%emt 0:00:18]} O-O {[%emt 0:08:31]} 8. Nc3 {[%emt 0:02:17]} e5 {[%emt 0:01:53]} 9. Be3 {[%emt 0:14:13]} b6 {[%emt 0:01:12]} 10. Qd2 {[%emt 0:04:43]} Qd6 {[%emt 0:00:35]} 11. Nh2 {[%emt 0:03:15]} Nh5 {[%emt 0:07:15]} 12. Bh6 {[%emt 0:11:58]} Bxh6 {[%emt 0:09:42]} 13. Qxh6 {[%emt 0:00:06]} Nf4 {[%emt 0:03:19]} 14. Nf3 {[%emt 0:07:36]} f6 {[%emt 0:04:51]} 15. Qh4 {[%emt 0:07:05]} Ne6 {[%emt 0:21:02]} 16. Qg3 {[%emt 0:04:06]} Nd4 {[%emt 0:08:32]} 17. Rac1 {[%emt 0:11:09]} Rf7 {[%emt 0:07:32]} 18. Rfe1 {[%emt 0:05:18]} Be6 {[%emt 0:06:59]} 19. b3 {[%emt 0:07:09]} a5 {[%emt 0:02:49]} 20. a4 {[%emt 0:04:28]} Nxc2 {[%emt 0:02:25]} 21. Rxc2 {[%emt 0:00:37]} Qxd3 {[%emt 0:00:10]} 22. Rec1 {[%emt 0:03:59]} Bxb3 {[%emt 0:00:42]} 23. Rb2 {[%emt 0:00:57]} Bxa4 {[%emt 0:03:20]} 24. Nxa4 {[%emt 0:02:01]} Qa3 {[%emt 0:00:10]} 25. Nxe5 {[%emt 0:04:18]} Qxg3 {[%emt 0:02:13]} 26. fxg3 {[%emt 0:00:01]} fxe5 {[%emt 0:00:11]} 27. Rxb6 {[%emt 0:00:28]} Rd7 {[%emt 0:04:46]} 28. Rxc6 {[%emt 0:01:55]} Rd4 {[%emt 0:00:30]} 29. Nxc5 {[%emt 0:00:50]} a4 {[%emt 0:00:16]} 30. Ra1 {[%emt 0:02:04]} a3 {[%emt 0:01:39]} 31. Ra6 {[%emt 0:00:42]} Rxa6 {[%emt 0:01:25]} 32. Nxa6 {[%emt 0:00:01]} Rxe4 {[%emt 0:00:29]} 33. Rxa3 {[%emt 0:00:21]} Kf7 {[%emt 0:00:46]} 34. Nc5 {[%emt 0:00:31]} Rc4 {[%emt 0:00:24]} 35. Nd3 {[%emt 0:00:45]} Kf6 {[%emt 0:00:37]} 36. Kf2 {[%emt 0:00:51]} Rc2+ {[%emt 0:00:52]} 37. Kf3 {[%emt 0:00:36]} e4+ {[%emt 0:00:44]} 38. Kxe4 {[%emt 0:00:07]} Rxg2 {[%emt 0:00:07]} 39. Nf4 {[%emt 0:00:19]} Rb2 {[%emt 0:00:38]} 40. Ra7 {[%emt 0:00:00]} Rb3 {[%emt 0:00:00]} 41. Nd5+ {[%emt 0:05:12]} Kg5 {[%emt 0:02:44]} 42. Ne3 {[%emt 0:01:41]} h5 {[%emt 0:01:17]} 43. Ra5+ {[%emt 0:05:07]} Kh6 {[%emt 0:00:43]} 44. h4 {[%emt 0:05:52]} Rb6 {[%emt 0:02:18]} 45. Rg5 {[%emt 0:01:51]} Rb4+ {[%emt 0:02:20]} 46. Ke5 {[%emt 0:00:34]} Rb5+ {[%emt 0:00:38]} 47. Nd5 {[%emt 0:00:26]} Ra5 {[%emt 0:01:02]} 48. Kf6 {[%emt 0:00:57]} Ra6+ {[%emt 0:00:09]} 49. Kf7 {[%emt 0:00:20]} Ra7+ {[%emt 0:01:26]} 50. Ne7 {[%emt 0:00:34]} Kh7 {[%emt 0:03:55]} 51. Rxg6 {[%emt 0:02:10]} Rb7 {[%emt 0:00:21]} 52. Re6 {[%emt 0:02:32]} Rb3 {[%emt 0:04:53]} 53. Nf5 {[%emt 0:00:46]} Rb7+ {[%emt 0:00:11]} 54. Kf6 {[%emt 0:00:49]} Rb8 {[%emt 0:01:39]} 55. Kg5 {[%emt 0:01:58]} Re8 {[%emt 0:00:28]} 56. Re7+ {[%emt 0:01:10]} 1-0

[Event "22nd ETCC Women 2019"]
[Site "Batumi"]
[Date "2019.10.27"]
[Round "4.29"]
[White "Milliet, Sophie"]
[Black "Hagarova, Zuzana"]
[Result "1-0"]
[ECO "B31"]
[WhiteElo "2400"]
[BlackElo "2295"]
[Annotator "NA"]
[PlyCount "85"]
[EventDate "2019.10.24"]
[EventType "team-tourn"]
[EventCountry "GEO"]
[SourceTitle "playchess.com"]
[Source "ChessBase"]
[SourceQuality "1"]
[WhiteTeam "France"]
[BlackTeam "Slovakia"]
[WhiteTeamCountry "FRA"]
[BlackTeamCountry "SVK"]
[TimeControl "40/5400+30:1800+30"]

1. e4 {[%emt 0:00:00]} c5 {[%emt 0:00:00]} 2. Nf3 {[%emt 0:00:00]} Nc6 {[%emt 0:00:00]} 3. Bb5 {[%emt 0:00:00]} g6 {[%emt 0:00:00]} 4. Bxc6 {[%emt 0:00:00]} bxc6 {[%emt 0:00:03]} 5. d4 {[%emt 0:00:11]} cxd4 {[%emt 0:03:46]} 6. Qxd4 {[%emt 0:00:07]} f6 {[%emt 0:01:00]} 7. c4 {[%emt 0:02:54]} Nh6 {[%emt 0:08:32]} 8. O-O {[%emt 0:00:14]} Bg7 {[%emt 0:00:54]} 9. Bxh6 {[%emt 0:02:36]} Bxh6 {[%emt 0:00:15]} 10. Rd1 {[%emt 0:01:22]} O-O {[%emt 0:09:33]} 11. c5 {[%emt 0:00:34]} Qc7 {[%emt 0:14:04]} 12. Na3 {[%emt 0:03:04]} Rb8 {[%emt 0:06:03]} 13. Nc4 {[%emt 0:00:48]} Ba6 {[%emt 0:03:36]} 14. Qc3 {[%emt 0:11:25]} Rbd8 {[%emt 0:10:39]} 15. Nd4 {[%emt 0:15:40]} Bg7 {[%emt 0:05:37]} 16. Re1 {[%emt 0:01:51]} Kh8 {[%emt 0:01:00]} 17. Rad1 {[%emt 0:27:29]} Qf4 {[%emt 0:16:07]} 18. g3 {[%emt 0:02:06]} Qg4 {[%emt 0:00:58]} 19. Ne3 {[%emt 0:06:50]} Qh3 {[%emt 0:01:35]} 20. Qa5 {[%emt 0:00:31]} Bb7 {[%emt 0:08:33]} 21. Qc7 {[%emt 0:01:53]} e5 {[%emt 0:06:47]} 22. Nf3 {[%emt 0:07:58]} Bc8 {[%emt 0:00:06]} 23. Nc4 {[%emt 0:01:04]} Qe6 {[%emt 0:00:15]} 24. b3 {[%emt 0:00:30]} d5 {[%emt 0:01:57]} 25. cxd6 {[%emt 0:00:27]} Rd7 {[%emt 0:00:19]} 26. Qa5 {[%emt 0:01:08]} Qg4 {[%emt 0:00:44]} 27. Kg2 {[%emt 0:01:00]} Rb7 {[%emt 0:00:21]} 28. Ng1 {[%emt 0:01:14]} Be6 {[%emt 0:00:35]} 29. Qc5 {[%emt 0:06:11]} Bd7 {[%emt 0:00:38]} 30. Na5 {[%emt 0:01:09]} Rb6 {[%emt 0:00:05]} 31. h3 {[%emt 0:01:15]} Qe6 {[%emt 0:00:17]} 32. Qc4 {[%emt 0:00:22]} Qe8 {[%emt 0:00:20]} 33. Qe2 {[%emt 0:02:45]} Qc8 {[%emt 0:00:35]} 34. Nc4 {[%emt 0:00:09]} Qa6 {[%emt 0:00:31]} 35. Nxb6 {[%emt 0:00:23]} Qxb6 {[%emt 0:00:05]} 36. Nf3 {[%emt 0:02:01]} Qb7 {[%emt 0:00:11]} 37. Qe3 {[%emt 0:00:44]} f5 {[%emt 0:01:52]} 38. exf5 {[%emt 0:00:12]} c5 {[%emt 0:00:21]} 39. Kg1 {[%emt 0:00:26]} Rxf5 {[%emt 0:00:39]} 40. Nh4 {[%emt 0:00:00]} Rh5 {[%emt 0:00:00]} 41. Qxc5 {[%emt 0:07:10]} Rxh4 {[%emt 0:14:23]} 42. gxh4 {[%emt 0:00:23]} Qf3 {[%emt 0:00:10]} 43. Qd5 {[%emt 0:03:47]} 1-0